fUST/lending_fUST_20250816
["ID","MTS","AMOUNT","RATE_DAILY","PERIOD"]
[379603645,1755343857111,-480.0,0.00022465,3]
[379603646,1755343857120,-480.0,0.00022465,3]
[379603647,1755343857131,-185.76293035,0.00022465,3]
[379603648,1755343857259,-683.46,0.00022465,3]
[379603649,1755343857270,-480.0,0.00022465,3]
[379603650,1755343857280,-1365.55,0.00022465,3]
[379603651,1755343857289,-320.0,0.00022465,3]
[379603652,1755343857298,-366.92578095,0.00022465,3]
[379603653,1755343857308,-480.0,0.00022465,3]
[379603654,1755343857317,-742.19765,0.00022465,7]
[379603655,1755343857326,-856.32,0.00022465,3]
[379603656,1755343857335,-1233.23,0.00022465,3]
[379603657,1755343857345,-480.0,0.00022465,3]
[379603658,1755343857355,-742.19765,0.00022465,7]
[379603659,1755343857364,-947.46,0.00022465,3]
[379603660,1755343857373,-480.0,0.00022465,3]
[379603661,1755343857382,-480.0,0.00022465,3]
[379603662,1755343857392,-480.0,0.00022465,3]
[379603663,1755343857401,-480.0,0.00022465,3]
[379603664,1755343857410,-480.0,0.00022465,3]
[379603665,1755343857419,-288.17525389,0.00022465,3]
[379603666,1755343857428,-480.0,0.00022465,3]
[379603667,1755343857437,-480.0,0.00022465,3]
[379603668,1755343857447,-480.0,0.00022465,3]
[379603669,1755343857456,-475.44,0.00022465,3]
[379603670,1755343857465,-480.0,0.00022465,3]
[379603671,1755343857475,-4922.02,0.00022465,3]
[379603672,1755343857484,-2979.34,0.00022465,3]
[379603673,1755343857493,-480.0,0.00022465,3]
[379603674,1755343857503,-480.0,0.00022465,3]
[379603675,1755343857512,-441.33073786,0.00022465,3]
[379603676,1755343857521,-480.0,0.00022465,3]
[379603677,1755343857531,-480.0,0.00022465,3]
[379603678,1755343857540,-480.0,0.00022465,3]
[379603679,1755343857549,-480.0,0.00022465,3]
[379603680,1755343857558,-480.0,0.00022465,3]
[379603681,1755343857568,-480.0,0.00022465,3]
[379603682,1755343857577,-480.0,0.00022465,3]
[379603683,1755343857586,-480.0,0.00022465,3]
[379603684,1755343857594,-1116.86,0.00022465,3]
[379603685,1755343857604,-480.0,0.00022465,3]
[379603686,1755343857613,-480.0,0.00022465,3]
[379603687,1755343857623,-480.0,0.00022465,3]
[379603688,1755343857632,-6893.89,0.00022465,3]
[379603689,1755343857641,-480.0,0.00022465,3]
[379603690,1755343857650,-347.91293757,0.00022465,3]
[379603691,1755343857658,-480.0,0.00022465,3]
[379603692,1755343857667,-480.0,0.00022465,3]
[379603693,1755343857676,-480.0,0.00022465,3]
[379603694,1755343857685,-480.0,0.00022465,3]
[379603695,1755343857694,-480.0,0.00022465,3]
[379603696,1755343857704,-480.0,0.00022465,3]
[379603697,1755343857713,-480.0,0.00022465,3]
[379603698,1755343857722,-153.0,0.00022466,2]
[379603699,1755343857731,-153.0,0.00022466,2]
[379603700,1755343857741,-153.0,0.00022466,2]
[379603701,1755343857751,-153.0,0.00022466,2]
[379603702,1755343857761,-1495.22728934,0.00022494,2]
[379603703,1755343857770,-160.0,0.00022496,2]
[379603704,1755343857780,-497.0,0.00022505,20]
[379603705,1755343857789,-284.0,0.00022514,2]
[379603706,1755343857798,-153.32251726,0.00022521,2]
[379603707,1755343857808,-153.32251725,0.00022521,2]
[379603708,1755343857817,-606.41745911,0.00022521,2]
[379603709,1755343857826,-501.83633287,0.00022521,2]
[379603710,1755343857835,-282.22940911,0.00022521,2]
[379603711,1755343857845,-500.0,0.00022521,2]
[379603712,1755343857854,-572.03085935,0.00022521,2]
[379603713,1755343857863,-1000.0,0.00022521,2]
[379603714,1755343857872,-1000.0,0.00022521,2]
[379603715,1755343857884,-168.0,0.00022532,2]
[379603716,1755343857894,-168.0,0.00022533,2]
[379603717,1755343857903,-244.02015005,0.00022537,2]
[379603718,1755343857913,-158.00000004,0.00022537,2]
[379603719,1755343857922,-6721.50094195,0.00022539,7]
[379603720,1755343857934,-284.0,0.00022608,2]
[379603721,1755343857943,-168.0,0.0002262,2]
[379603722,1755343857952,-151.0,0.00022622,2]
[379603723,1755343857961,-151.0,0.00022622,2]
[379603724,1755343857972,-151.0,0.00022622,2]
[379603725,1755343857982,-151.0,0.00022622,2]
[379603726,1755343857992,-2807.65384535,0.00022639,2]
[379603727,1755343858001,-284.0,0.00022645,2]
[379603728,1755343858011,-160.0,0.00022661,3]
[379603729,1755343858021,-153.32251725,0.00022685,2]
[379603730,1755343858030,-200.0,0.000227,5]
[379603731,1755343858039,-528.38334358,0.00022708,2]
[379603732,1755343858048,-462.1417622,0.00022708,2]
[379603733,1755343858057,-153.32251726,0.00022712,2]
[379603734,1755343858066,-500.0,0.00022721,2]
[379603735,1755343858076,-601.07143356,0.00022721,2]
[379603736,1755343858085,-1000.0,0.00022721,2]
[379603737,1755343858095,-1000.0,0.00022721,2]
[379603738,1755343858105,-539.96008021,0.00022721,2]
[379603739,1755343858114,-500.0,0.00022721,2]
[379603740,1755343858124,-961.03934807,0.00022721,2]
[379603741,1755343858134,-501.97212271,0.00022721,2]
[379603742,1755343858143,-500.51507045,0.00022721,2]
[379603743,1755343858153,-501.47483478,0.00022721,2]
[379603744,1755343858162,-1000.0,0.00022721,2]
[379603745,1755343858172,-1000.31355089,0.00022721,2]
[379603746,1755343858181,-1002.56827697,0.00022721,2]
[379603747,1755343858190,-1000.0,0.00022721,2]
[379603748,1755343858200,-500.0,0.00022721,2]
[379603749,1755343858209,-1000.0,0.00022721,2]
[379603750,1755343858218,-1000.0,0.00022721,2]
[379603751,1755343858228,-1008.12639967,0.00022721,2]
[379603752,1755343858237,-500.43214558,0.00022721,2]
[379603753,1755343858248,-1000.0,0.00022721,2]
[379603754,1755343858258,-1000.0,0.00022721,2]
[379603755,1755343858268,-502.00672859,0.00022721,2]
[379603756,1755343858277,-1000.0,0.00022721,2]
[379603757,1755343858287,-527.70085144,0.00022721,2]
[379603758,1755343858296,-1000.86375215,0.00022721,2]
[379603759,1755343858306,-229.65860377,0.00022721,2]
[379603760,1755343858315,-1000.0,0.00022721,2]
[379603761,1755343858324,-1000.0,0.00022721,2]
[379603762,1755343858334,-349.78697956,0.00022721,2]
[379603763,1755343858343,-502.95469408,0.00022721,2]
[379603764,1755343858353,-500.0,0.00022721,2]
[379603765,1755343858362,-1000.0,0.00022721,2]
[379603766,1755343858371,-195.74148035,0.00022721,2]
[379603767,1755343858381,-1035.54622953,0.00022721,2]
[379603768,1755343858391,-1000.0,0.00022721,2]
[379603769,1755343858400,-206.75283235,0.00022721,2]
[379603770,1755343858409,-501.03053184,0.00022721,2]
[379603771,1755343858419,-413.4443185,0.00022721,2]
[379603772,1755343858428,-742.19765,0.00022721,7]
[379603773,1755343858437,-742.19765,0.00022721,7]
[379603774,1755343858446,-600.0,0.00022739,2]
[379603775,1755343858455,-151.0,0.00022739,7]
[379603776,1755343858465,-151.0,0.00022739,7]
[379603777,1755343858474,-152.947077,0.00022739,7]
[379603778,1755343858484,-789.171509,0.00022739,7]
[379603779,1755343858494,-789.171509,0.00022739,7]
[379603780,1755343858503,-151.0,0.00022739,7]
[379603781,1755343858512,-151.0,0.00022739,7]
[379603782,1755343858522,-215.763077,0.00022739,7]
[379603783,1755343858531,-215.763077,0.00022739,7]
[379603784,1755343858541,-151.0,0.00022739,7]
[379603785,1755343858550,-151.0,0.00022739,7]
[379603786,1755343858559,-151.0,0.00022739,7]
[379603787,1755343858568,-151.0,0.00022739,7]
[379603788,1755343858578,-480.0,0.00022739,3]
[379603789,1755343858587,-480.0,0.00022739,3]
[379603790,1755343858596,-480.0,0.00022739,3]
[379603791,1755343858605,-480.0,0.00022739,3]
[379603792,1755343858614,-480.0,0.00022739,3]
[379603793,1755343858623,-480.0,0.00022739,3]
[379603794,1755343858632,-480.0,0.00022739,3]
[379603795,1755343858642,-480.0,0.00022739,3]
[379603796,1755343858651,-480.0,0.00022739,3]
[379603797,1755343858659,-480.0,0.00022739,3]
[379603798,1755343858668,-480.0,0.00022739,3]
[379603799,1755343858678,-455.8479886,0.00022739,3]
[379603800,1755343858687,-340.0,0.00022739,3]
[379603801,1755343858696,-480.0,0.00022739,3]
[379603802,1755343858706,-480.0,0.00022739,3]
[379603803,1755343858714,-480.0,0.00022739,3]
[379603804,1755343858723,-361.72060226,0.00022739,3]
[379603805,1755343858737,-480.0,0.00022739,3]
[379603806,1755343858747,-401.17172679,0.00022739,3]
[379603807,1755343858756,-480.0,0.00022739,3]
[379603808,1755343858765,-480.0,0.00022739,3]
[379603809,1755343858774,-400.0,0.00022739,3]
[379603810,1755343858783,-480.0,0.00022739,3]
[379603811,1755343858791,-480.0,0.00022739,3]
[379603812,1755343858800,-480.0,0.00022739,3]
[379603813,1755343858809,-480.0,0.00022739,3]
[379603814,1755343858818,-480.0,0.00022739,3]
[379603815,1755343858827,-480.0,0.00022739,3]
[379603816,1755343858836,-480.0,0.00022739,3]
[379603817,1755343858845,-2230.54,0.00022739,3]
[379603818,1755343858858,-480.0,0.00022739,3]
[379603819,1755343858867,-660.39,0.00022739,3]
[379603820,1755343858876,-480.0,0.00022739,3]
[379603821,1755343858884,-480.0,0.00022739,3]
[379603822,1755343858893,-480.0,0.00022739,3]
[379603823,1755343858902,-480.0,0.00022739,3]
[379603824,1755343858911,-480.0,0.00022739,3]
[379603825,1755343858920,-480.0,0.00022739,3]
[379603826,1755343858931,-480.0,0.00022739,3]
[379603827,1755343858941,-480.0,0.00022739,3]
[379603828,1755343858950,-480.0,0.00022739,3]
[379603829,1755343858959,-480.0,0.00022739,3]
[379603830,1755343858968,-480.0,0.00022739,3]
[379603831,1755343858977,-581.35702689,0.00022739,3]
[379603832,1755343858986,-480.0,0.00022739,3]
[379603833,1755343858996,-480.0,0.00022739,3]
[379603834,1755343859006,-480.0,0.00022739,3]
[379603835,1755343859015,-290.59309759,0.00022739,3]
[379603836,1755343859024,-283.55038834,0.00022739,3]
[379603837,1755343859033,-480.0,0.00022739,3]
[379603838,1755343859042,-222.9493088,0.00022739,3]
[379603839,1755343859052,-480.0,0.00022739,3]
[379603840,1755343859062,-480.0,0.00022739,3]
[379603841,1755343859071,-480.0,0.00022739,3]
[379603842,1755343859079,-480.0,0.00022739,3]
[379603843,1755343859089,-480.0,0.00022739,3]
[379603844,1755343859098,-460.0,0.00022739,3]
[379603845,1755343859107,-480.0,0.00022739,3]
[379603846,1755343859116,-480.0,0.00022739,3]
[379603847,1755343859125,-480.0,0.00022739,3]
[379603848,1755343859134,-480.0,0.00022739,3]
[379603849,1755343859143,-480.0,0.00022739,3]
[379603850,1755343859152,-480.0,0.00022739,3]
[379603851,1755343859161,-480.0,0.00022739,3]
[379603852,1755343859170,-480.0,0.00022739,3]
[379603853,1755343859179,-480.0,0.00022739,3]
[379603854,1755343859188,-480.0,0.00022739,3]
[379603855,1755343859197,-480.0,0.00022739,3]
[379603856,1755343859206,-480.0,0.00022739,3]
[379603857,1755343859215,-480.0,0.00022739,3]
[379603858,1755343859224,-480.0,0.00022739,3]
[379603859,1755343859234,-480.0,0.00022739,3]
[379603860,1755343859243,-480.0,0.00022739,3]
[379603861,1755343859252,-260.0,0.00022739,3]
[379603862,1755343859262,-480.0,0.00022739,3]
[379603863,1755343859271,-2261.75,0.00022739,3]
[379603864,1755343859280,-480.0,0.00022739,3]
[379603865,1755343859290,-480.0,0.00022739,3]
[379603866,1755343859300,-480.0,0.00022739,3]
[379603867,1755343859309,-480.0,0.00022739,3]
[379603868,1755343859319,-480.0,0.00022739,3]
[379603869,1755343859328,-480.0,0.00022739,3]
[379603870,1755343859338,-480.0,0.00022739,3]
[379603871,1755343859347,-194.008827,0.00022739,7]
[379603872,1755343859357,-194.008827,0.00022739,7]
[379603873,1755343859367,-480.0,0.00022739,3]
[379603874,1755343859376,-480.0,0.00022739,3]
[379603875,1755343859386,-194.008827,0.00022739,7]
[379603876,1755343859396,-194.008827,0.00022739,7]
[379603877,1755343859405,-480.0,0.00022739,3]
[379603878,1755343859415,-573.66,0.00022739,3]
[379603879,1755343859425,-480.0,0.00022739,3]
[379603880,1755343859434,-295.73310218,0.00022739,3]
[379603881,1755343859444,-480.0,0.00022739,3]
[379603882,1755343859453,-480.0,0.00022739,3]
[379603883,1755343859462,-480.0,0.00022739,3]
[379603884,1755343859472,-480.0,0.00022739,3]
[379603885,1755343859481,-480.0,0.00022739,3]
[379603886,1755343859491,-743.69,0.00022739,3]
[379603887,1755343859501,-480.0,0.00022739,3]
[379603888,1755343859510,-724.76,0.00022739,3]
[379603889,1755343859519,-480.0,0.00022739,3]
[379603890,1755343859529,-480.0,0.00022739,3]
[379603891,1755343859538,-380.0,0.00022739,3]
[379603892,1755343859548,-480.0,0.00022739,3]
[379603893,1755343859557,-480.0,0.00022739,3]
[379603894,1755343859567,-480.0,0.00022739,3]
[379603895,1755343859577,-480.0,0.00022739,3]
[379603896,1755343859586,-1513.37,0.00022739,3]
[379603897,1755343859596,-480.0,0.00022739,3]
[379603898,1755343859605,-480.0,0.00022739,3]
[379603899,1755343859712,-480.0,0.00022739,3]
[379603900,1755343859736,-570.29688885,0.00022739,3]
[379603901,1755343859745,-1095.96,0.00022739,3]
[379603902,1755343859755,-480.0,0.00022739,3]
[379603903,1755343859764,-480.0,0.00022739,3]
[379603904,1755343859774,-480.0,0.00022739,3]
[379603905,1755343859783,-480.0,0.00022739,3]
[379603906,1755343859793,-480.0,0.00022739,3]
[379603907,1755343859803,-200.0,0.00022739,3]
[379603908,1755343859813,-480.0,0.00022739,3]
[379603909,1755343859823,-480.0,0.00022739,3]
[379603910,1755343859832,-480.0,0.00022739,3]
[379603911,1755343859841,-480.0,0.00022739,3]
[379603912,1755343859851,-480.0,0.00022739,3]
[379603913,1755343859861,-480.0,0.00022739,3]
[379603914,1755343859871,-480.0,0.00022739,3]
[379603915,1755343859880,-480.0,0.00022739,3]
[379603916,1755343859890,-480.0,0.00022739,3]
[379603917,1755343859900,-480.0,0.00022739,3]
[379603918,1755343859909,-725.0,0.00022739,3]
[379603919,1755343859919,-480.0,0.00022739,3]
[379603920,1755343859932,-480.0,0.00022739,3]
[379603921,1755343859942,-480.0,0.00022739,3]
[379603922,1755343859951,-480.0,0.00022739,3]
[379603923,1755343859961,-480.0,0.00022739,3]
[379603924,1755343859970,-480.0,0.00022739,3]
[379603925,1755343859981,-480.0,0.00022739,3]
[379603926,1755343859990,-590.02076478,0.00022739,3]
[379603927,1755343860000,-480.0,0.00022739,3]
[379603928,1755343860011,-480.0,0.00022739,3]
[379603929,1755343860021,-480.0,0.00022739,3]
[379603930,1755343860032,-1753.15,0.00022739,3]
[379603931,1755343860042,-480.0,0.00022739,3]
[379603932,1755343860052,-480.0,0.00022739,3]
[379603933,1755343860063,-531.35303562,0.00022739,3]
[379603934,1755343860073,-480.0,0.00022739,3]
[379603935,1755343860083,-480.0,0.00022739,3]
[379603936,1755343860092,-480.0,0.00022739,3]
[379603937,1755343860103,-501.74378,0.00022739,7]
[379603938,1755343860113,-501.74378,0.00022739,7]
[379603939,1755343860124,-480.0,0.00022739,3]
[379603940,1755343860134,-480.0,0.00022739,3]
[379603941,1755343860144,-501.74378,0.00022739,7]
[379603942,1755343860154,-480.0,0.00022739,3]
[379603943,1755343860164,-501.74378,0.00022739,7]
[379603944,1755343860173,-480.0,0.00022739,3]
[379603945,1755343860183,-321.59,0.00022739,3]
[379603946,1755343860193,-480.0,0.00022739,3]
[379603947,1755343860203,-480.0,0.00022739,3]
[379603948,1755343860212,-480.0,0.00022739,3]
[379603949,1755343860222,-480.0,0.00022739,3]
[379603950,1755343860232,-151.0,0.00022739,7]
[379603951,1755343860242,-480.0,0.00022739,3]
[379603952,1755343860252,-151.0,0.00022739,7]
[379603953,1755343860261,-480.0,0.00022739,3]
[379603954,1755343860270,-480.0,0.00022739,3]
[379603955,1755343860279,-1568.16,0.00022739,3]
[379603956,1755343860288,-2648.8,0.00022739,3]
[379603957,1755343860298,-480.0,0.00022739,3]
[379603958,1755343860307,-480.0,0.00022739,3]
[379603959,1755343860316,-480.0,0.00022739,3]
[379603960,1755343860325,-480.0,0.00022739,3]
[379603961,1755343860335,-480.0,0.00022739,3]
[379603962,1755343860344,-480.0,0.00022739,3]
[379603963,1755343860354,-1129.28,0.00022739,3]
[379603964,1755343860363,-480.0,0.00022739,3]
[379603965,1755343860372,-480.0,0.00022739,3]
[379603966,1755343860381,-3533.42,0.00022739,3]
[379603967,1755343860390,-480.0,0.00022739,3]
[379603968,1755343860399,-480.0,0.00022739,3]
[379603969,1755343860409,-707.78,0.00022739,3]
[379603970,1755343860419,-480.0,0.00022739,3]
[379603971,1755343860428,-237.90426437,0.00022739,3]
[379603972,1755343860437,-480.0,0.00022739,3]
[379603973,1755343860446,-480.0,0.00022739,3]
[379603974,1755343860454,-480.0,0.00022739,2]
[379603975,1755343860463,-493.84178222,0.00022739,3]
[379603976,1755343860472,-480.0,0.00022739,3]
[379603977,1755343860481,-480.0,0.00022739,3]
[379603978,1755343860490,-480.0,0.00022739,3]
[379603979,1755343860501,-480.0,0.00022739,3]
[379603980,1755343860510,-225.76807373,0.00022739,3]
[379603981,1755343860519,-151.0,0.00022739,7]
[379603982,1755343860528,-480.0,0.00022739,3]
[379603983,1755343860537,-480.0,0.00022739,3]
[379603984,1755343860545,-151.0,0.00022739,7]
[379603985,1755343860554,-151.0,0.00022739,7]
[379603986,1755343860563,-484.85,0.00022739,3]
[379603987,1755343860572,-480.0,0.00022739,3]
[379603988,1755343860581,-151.0,0.00022739,7]
[379603989,1755343860590,-151.0,0.00022739,7]
[379603990,1755343860599,-480.0,0.00022739,3]
[379603991,1755343860608,-480.0,0.00022739,3]
[379603992,1755343860617,-480.0,0.00022739,3]
[379603993,1755343860625,-400.0,0.00022739,3]
[379603994,1755343860634,-480.0,0.00022739,3]
[379603995,1755343860643,-480.0,0.00022739,3]
[379603996,1755343860652,-480.0,0.00022739,3]
[379603997,1755343860661,-480.0,0.00022739,3]
[379603998,1755343860670,-480.0,0.00022739,3]
[379603999,1755343860679,-480.0,0.00022739,3]
[379604000,1755343860688,-360.0,0.00022739,3]
[379604001,1755343860697,-1152.54,0.00022739,3]
[379604002,1755343860705,-791.92,0.00022739,3]
[379604003,1755343860714,-151.0,0.00022739,7]
[379604004,1755343860723,-151.0,0.00022739,7]
[379604005,1755343860732,-791.03,0.00022739,3]
[379604006,1755343860741,-782.85,0.00022739,3]
[379604007,1755343860750,-480.0,0.00022739,3]
[379604008,1755343860759,-445.6003342,0.00022739,3]
[379604009,1755343860768,-480.0,0.00022739,3]
[379604010,1755343860777,-480.0,0.00022739,3]
[379604011,1755343860786,-500.0,0.00022739,3]
[379604012,1755343860795,-480.0,0.00022739,3]
[379604013,1755343860804,-527.53,0.00022739,3]
[379604014,1755343860813,-480.0,0.00022739,3]
[379604015,1755343860822,-480.0,0.00022739,3]
[379604016,1755343860831,-678.52,0.00022739,3]
[379604017,1755343860839,-781.9,0.00022739,3]
[379604018,1755343860849,-545.03,0.00022739,3]
[379604019,1755343860858,-755.57,0.00022739,3]
[379604020,1755343860867,-480.0,0.00022739,3]
[379604021,1755343860876,-916.98,0.00022739,3]
[379604022,1755343860885,-480.0,0.00022739,3]
[379604023,1755343860894,-1537.62,0.00022739,3]
[379604024,1755343860903,-480.0,0.00022739,3]
[379604025,1755343860913,-210.59743655,0.00022739,3]
[379604026,1755343860922,-1080.95,0.00022739,3]
[379604027,1755343860935,-2123.71,0.00022739,3]
[379604028,1755343860944,-480.0,0.00022739,3]
[379604029,1755343860953,-480.0,0.00022739,3]
[379604030,1755343860962,-834.84,0.00022739,3]
[379604031,1755343860971,-630.33,0.00022739,3]
[379604032,1755343860980,-480.0,0.00022739,3]
[379604033,1755343860989,-280.0,0.00022739,3]
[379604034,1755343860998,-480.0,0.00022739,3]
[379604035,1755343861008,-480.0,0.00022739,3]
[379604036,1755343861017,-480.0,0.00022739,3]
[379604037,1755343861026,-1582.23,0.00022739,3]
[379604038,1755343861035,-480.0,0.00022739,3]
[379604039,1755343861044,-480.0,0.00022739,3]
[379604040,1755343861053,-480.0,0.00022739,3]
[379604041,1755343861062,-603.52,0.00022739,3]
[379604042,1755343861072,-480.0,0.00022739,3]
[379604043,1755343861081,-480.0,0.00022739,3]
[379604044,1755343861090,-480.0,0.00022739,3]
[379604045,1755343861099,-480.0,0.00022739,3]
[379604046,1755343861107,-281.70088578,0.00022739,3]
[379604047,1755343861116,-1050.97,0.00022739,3]
[379604048,1755343861125,-2191.75,0.00022739,3]
[379604049,1755343861134,-300.0,0.00022739,3]
[379604050,1755343861143,-1156.0,0.00022739,3]
[379604051,1755343861152,-480.0,0.00022739,3]
[379604052,1755343861161,-502.32,0.00022739,3]
[379604053,1755343861170,-480.0,0.00022739,3]
[379604054,1755343861180,-480.0,0.00022739,3]
[379604055,1755343861189,-480.0,0.00022739,3]
[379604056,1755343861199,-480.0,0.00022739,3]
[379604057,1755343861208,-480.0,0.00022739,3]
[379604058,1755343861217,-480.0,0.00022739,3]
[379604059,1755343861226,-480.0,0.00022739,3]
[379604060,1755343861235,-420.0,0.00022739,3]
[379604061,1755343861245,-480.0,0.00022739,3]
[379604062,1755343861254,-800.04,0.00022739,3]
[379604063,1755343861262,-669.88,0.00022739,3]
[379604064,1755343861271,-480.0,0.00022739,3]
[379604065,1755343861280,-927.22,0.00022739,3]
[379604066,1755343861289,-690.91,0.00022739,3]
[379604067,1755343861298,-480.0,0.00022739,3]
[379604068,1755343861308,-480.0,0.00022739,3]
[379604069,1755343861317,-1214.54,0.00022739,3]
[379604070,1755343861326,-480.0,0.00022739,3]
[379604071,1755343861334,-480.0,0.00022739,3]
[379604072,1755343861344,-480.0,0.00022739,3]
[379604073,1755343861352,-244.28527995,0.00022739,3]
[379604074,1755343861361,-480.0,0.00022739,3]
[379604075,1755343861370,-480.0,0.00022739,3]
[379604076,1755343861378,-480.0,0.00022739,3]
[379604077,1755343861387,-480.0,0.00022739,3]
[379604078,1755343861396,-5043.85,0.00022739,3]
[379604079,1755343861406,-480.0,0.00022739,3]
[379604080,1755343861416,-250.734607,0.00022739,7]
[379604081,1755343861424,-250.734607,0.00022739,7]
[379604082,1755343861434,-480.0,0.00022739,3]
[379604083,1755343861443,-250.734607,0.00022739,7]
[379604084,1755343861453,-250.734607,0.00022739,7]
[379604085,1755343861462,-557.39188794,0.00022739,3]
[379604086,1755343861472,-480.0,0.00022739,3]
[379604087,1755343861481,-480.0,0.00022739,3]
[379604088,1755343861491,-480.0,0.00022739,3]
[379604089,1755343861502,-480.0,0.00022739,3]
[379604090,1755343861511,-323.72693309,0.00022739,3]
[379604091,1755343861521,-480.0,0.00022739,3]
[379604092,1755343861530,-480.0,0.00022739,3]
[379604093,1755343861541,-7524.68,0.00022739,3]
[379604094,1755343861551,-480.0,0.00022739,3]
[379604095,1755343861560,-421.8441225,0.00022739,3]
[379604096,1755343861570,-12474.9,0.00022739,3]
[379604097,1755343861580,-619.12,0.00022739,3]
[379604098,1755343861590,-480.0,0.00022739,3]
[379604099,1755343861599,-480.0,0.00022739,3]
[379604100,1755343861609,-1107.27,0.00022739,3]
[379604101,1755343861619,-162.923681,0.00022739,7]
[379604102,1755343861628,-634.38,0.00022739,3]
[379604103,1755343861638,-1077.5,0.00022739,3]
[379604104,1755343861647,-480.0,0.00022739,3]
[379604105,1755343861657,-2272.92,0.00022739,3]
[379604106,1755343861666,-809.02,0.00022739,3]
[379604107,1755343861677,-162.923681,0.00022739,7]
[379604108,1755343861688,-480.0,0.00022739,3]
[379604109,1755343861697,-480.0,0.00022739,3]
[379604110,1755343861708,-683.46,0.00022739,3]
[379604111,1755343861718,-480.0,0.00022739,3]
[379604112,1755343861727,-1365.55,0.00022739,3]
[379604113,1755343861736,-480.0,0.00022739,3]
[379604114,1755343861746,-856.32,0.00022739,3]
[379604115,1755343861755,-1233.23,0.00022739,3]
[379604116,1755343861766,-742.19765,0.00022739,7]
[379604117,1755343861775,-480.0,0.00022739,3]
[379604118,1755343861785,-742.19765,0.00022739,7]
[379604119,1755343861795,-947.46,0.00022739,3]
[379604120,1755343861805,-480.0,0.00022739,3]
[379604121,1755343861814,-480.0,0.00022739,3]
[379604122,1755343861824,-480.0,0.00022739,3]
[379604123,1755343861833,-480.0,0.00022739,3]
[379604124,1755343861842,-480.0,0.00022739,3]
[379604125,1755343861853,-480.0,0.00022739,3]
[379604126,1755343861862,-480.0,0.00022739,3]
[379604127,1755343861871,-480.0,0.00022739,3]
[379604128,1755343861880,-480.0,0.00022739,3]
[379604129,1755343861890,-4922.02,0.00022739,3]
[379604130,1755343861900,-2979.34,0.00022739,3]
[379604131,1755343861909,-480.0,0.00022739,3]
[379604132,1755343861918,-480.0,0.00022739,3]
[379604133,1755343862038,-480.0,0.00022739,3]
[379604134,1755343862048,-480.0,0.00022739,3]
[379604135,1755343862058,-480.0,0.00022739,3]
[379604136,1755343862068,-480.0,0.00022739,3]
[379604137,1755343862078,-480.0,0.00022739,3]
[379604138,1755343862087,-480.0,0.00022739,3]
[379604139,1755343862097,-480.0,0.00022739,3]
[379604140,1755343862107,-480.0,0.00022739,3]
[379604141,1755343862117,-1116.86,0.00022739,3]
[379604142,1755343862127,-480.0,0.00022739,3]
[379604143,1755343862137,-480.0,0.00022739,3]
[379604144,1755343862146,-480.0,0.00022739,3]